[Event "Titled Tuesday Blitz June 20 Late 2023"]
[White "The_Sherman_Variation"]
[Black "Licznerski, Lukasz"]
[BlackFideId "1179250"]
[WhiteElo "2513"]
[BlackElo "2453"]
[Result "0-1"]
[Round "5"]
[TimeControl "180+2"]
[Date "2023.06.20"]
[WhiteClock "0:00:12"]
[BlackClock "0:00:02"]
[Board "71"]

1. Nf3 {[%clk 0:03:00]}  Nf6 {[%clk 0:02:59]} 2. b3 {[%clk 0:02:58]}  d5 {[%clk 0:02:59]} 3. Bb2 {[%clk 0:02:57]}  Bg4 {[%clk 0:02:59]} 4. e3 {[%clk 0:02:55]}  e6 {[%clk 0:02:58]} 5. c4 {[%clk 0:02:54]}  Bd6 {[%clk 0:02:55]} 6. h3 {[%clk 0:02:54]}  Bxf3 {[%clk 0:02:49]} 7. Qxf3 {[%clk 0:02:55]}  Nbd7 {[%clk 0:02:49]} 8. Be2 {[%clk 0:02:52]}  Qe7 {[%clk 0:02:44]} 9. O-O {[%clk 0:02:42]}  O-O {[%clk 0:02:32]} 10. d4 {[%clk 0:02:40]}  c6 {[%clk 0:02:26]} 11. Bd3 {[%clk 0:02:32]}  e5 {[%clk 0:02:20]} 12. dxe5 {[%clk 0:02:21]}  Nxe5 {[%clk 0:02:20]} 13. Qe2 {[%clk 0:02:20]}  Rfd8 {[%clk 0:02:01]} 14. cxd5 {[%clk 0:02:10]}  Nxd5 {[%clk 0:01:49]} 15. Bc2 {[%clk 0:02:08]}  Nb4 {[%clk 0:01:42]} 16. Nc3 {[%clk 0:01:56]}  Ned3 {[%clk 0:01:39]} 17. Bxd3 {[%clk 0:01:51]}  Nxd3 {[%clk 0:01:40]} 18. Rad1 {[%clk 0:01:46]}  Nxb2 {[%clk 0:01:24]} 19. Qxb2 {[%clk 0:01:47]}  Be5 {[%clk 0:01:22]} 20. Qc2 {[%clk 0:01:45]}  Qc5 {[%clk 0:01:20]} 21. Rc1 {[%clk 0:01:44]}  Qxc3 {[%clk 0:01:07]} 22. Qxc3 {[%clk 0:01:45]}  Bxc3 {[%clk 0:01:07]} 23. Rxc3 {[%clk 0:01:45]}  Rd2 {[%clk 0:01:07]} 24. a4 {[%clk 0:01:44]}  Rad8 {[%clk 0:01:05]} 25. Ra1 {[%clk 0:01:38]}  Rb2 {[%clk 0:00:59]} 26. e4 {[%clk 0:01:34]}  Rdd2 {[%clk 0:00:58]} 27. Rf3 {[%clk 0:01:34]}  Kf8 {[%clk 0:00:50]} 28. a5 {[%clk 0:01:29]}  Ra2 {[%clk 0:00:37]} 29. Rxa2 {[%clk 0:01:13]}  Rxa2 {[%clk 0:00:38]} 30. b4 {[%clk 0:01:14]}  Rb2 {[%clk 0:00:20]} 31. a6 {[%clk 0:01:13]}  bxa6 {[%clk 0:00:20]} 32. Ra3 {[%clk 0:01:12]}  Rxb4 {[%clk 0:00:20]} 33. Rxa6 {[%clk 0:01:12]}  Rxe4 {[%clk 0:00:21]} 34. Rxc6 {[%clk 0:01:09]}  Re8 {[%clk 0:00:20]} 35. Ra6 {[%clk 0:01:06]}  Ra8 {[%clk 0:00:20]} 36. f4 {[%clk 0:01:05]}  Ke7 {[%clk 0:00:21]} 37. Kf2 {[%clk 0:01:05]}  Kd7 {[%clk 0:00:21]} 38. Ke3 {[%clk 0:01:05]}  Kc7 {[%clk 0:00:22]} 39. Ke4 {[%clk 0:01:05]}  Kb7 {[%clk 0:00:22]} 40. Ra1 {[%clk 0:01:05]}  a5 {[%clk 0:00:21]} 41. Ke5 {[%clk 0:01:04]}  a4 {[%clk 0:00:17]} 42. Kd6 {[%clk 0:01:04]}  Kb6 {[%clk 0:00:15]} 43. Rb1+ {[%clk 0:01:00]}  Ka6 {[%clk 0:00:13]} 44. Ke7 {[%clk 0:00:54]}  Ra7+ {[%clk 0:00:12]} 45. Kf8 {[%clk 0:00:55]}  f6 {[%clk 0:00:13]} 46. Kg8 {[%clk 0:00:54]}  h6 {[%clk 0:00:13]} 47. g4 {[%clk 0:00:50]}  Ka5 {[%clk 0:00:09]} 48. h4 {[%clk 0:00:48]}  a3 {[%clk 0:00:09]} 49. g5 {[%clk 0:00:47]}  fxg5 {[%clk 0:00:09]} 50. fxg5 {[%clk 0:00:48]}  hxg5 {[%clk 0:00:09]} 51. hxg5 {[%clk 0:00:49]}  Ka4 {[%clk 0:00:09]} 52. Rf1 {[%clk 0:00:41]}  a2 {[%clk 0:00:09]} 53. g6 {[%clk 0:00:38]}  Kb3 {[%clk 0:00:08]} 54. Rf3+ {[%clk 0:00:36]}  Kc4 {[%clk 0:00:08]} 55. Rf4+ {[%clk 0:00:36]}  Kd5 {[%clk 0:00:06]} 56. Rf1 {[%clk 0:00:34]}  a1=Q {[%clk 0:00:06]} 57. Rxa1 {[%clk 0:00:34]}  Rxa1 {[%clk 0:00:07]} 58. Kxg7 {[%clk 0:00:34]}  Ke6 {[%clk 0:00:07]} 59. Kh7 {[%clk 0:00:22]}  Rh1+ {[%clk 0:00:05]} 60. Kg8 {[%clk 0:00:21]}  Kf6 {[%clk 0:00:02]} 61. g7 {[%clk 0:00:21]}  Rh2 {[%clk 0:00:01]} 62. Kf8 {[%clk 0:00:19]}  Ra2 {[%clk 0:00:01]} 63. g8=N+ {[%clk 0:00:16]}  Ke6 {[%clk 0:00:02]} 64. Kg7 {[%clk 0:00:16]}  Ra7+ {[%clk 0:00:02]} 65. Kg6 {[%clk 0:00:16]}  Ra1 {[%clk 0:00:03]} 66. Nh6 {[%clk 0:00:15]}  Rg1+ {[%clk 0:00:03]} 67. Kh7 {[%clk 0:00:15]}  Kf6 {[%clk 0:00:02]} 68. Ng8+ {[%clk 0:00:15]}  Kf7 {[%clk 0:00:02]} 69. Nh6+ {[%clk 0:00:16]}  Kf8 {[%clk 0:00:03]} 70. Nf5 {[%clk 0:00:15]}  Rg5 {[%clk 0:00:03]} 71. Nh6 {[%clk 0:00:15]}  Ke7 {[%clk 0:00:03]} 72. Ng8+ {[%clk 0:00:14]}  Ke6 {[%clk 0:00:03]} 73. Nh6 {[%clk 0:00:14]}  Kf6 {[%clk 0:00:04]} 74. Ng8+ {[%clk 0:00:15]}  Kf5 {[%clk 0:00:04]} 75. Nh6+ {[%clk 0:00:15]}  Ke6 {[%clk 0:00:04]} 76. Ng8 {[%clk 0:00:15]}  Rg1 {[%clk 0:00:04]} 77. Nh6 {[%clk 0:00:15]}  Ke7 {[%clk 0:00:05]} 78. Ng8+ {[%clk 0:00:15]}  Kf8 {[%clk 0:00:05]} 79. Nh6 {[%clk 0:00:15]}  Rg5 {[%clk 0:00:05]} 80. Ng8 {[%clk 0:00:12]}  Rxg8 {[%clk 0:00:02]} 0-1


[Site "https://www.chess.com"]

[Event "Titled Tuesday Blitz June 20 Late 2023"]
[White "Xu, Yi"]
[Black "Berezin, Viktor"]
[WhiteFideId "8605564"]
[BlackFideId "14107872"]
[WhiteElo "2460"]
[BlackElo "2310"]
[Result "0-1"]
[Round "5"]
[TimeControl "180+2"]
[Date "2023.06.20"]
[WhiteClock "0:00:06"]
[BlackClock "0:00:15"]
[Board "72"]

1. d4 {[%clk 0:03:00]}  Nf6 {[%clk 0:02:55]} 2. c4 {[%clk 0:03:00]}  g6 {[%clk 0:02:51]} 3. Nc3 {[%clk 0:02:59]}  Bg7 {[%clk 0:02:49]} 4. e4 {[%clk 0:02:56]}  d6 {[%clk 0:02:46]} 5. Nf3 {[%clk 0:02:55]}  O-O {[%clk 0:02:45]} 6. h3 {[%clk 0:02:55]}  Na6 {[%clk 0:02:44]} 7. Be2 {[%clk 0:02:47]}  e5 {[%clk 0:02:44]} 8. d5 {[%clk 0:02:47]}  Nc5 {[%clk 0:02:43]} 9. Nd2 {[%clk 0:02:48]}  a5 {[%clk 0:02:43]} 10. g4 {[%clk 0:02:48]}  c6 {[%clk 0:02:41]} 11. Qc2 {[%clk 0:02:23]}  a4 {[%clk 0:02:40]} 12. g5 {[%clk 0:02:08]}  Nh5 {[%clk 0:02:19]} 13. Bxh5 {[%clk 0:02:06]}  gxh5 {[%clk 0:02:20]} 14. Nf3 {[%clk 0:02:02]}  f5 {[%clk 0:02:15]} 15. Nh4 {[%clk 0:01:52]}  f4 {[%clk 0:02:04]} 16. Nf3 {[%clk 0:01:51]}  Bd7 {[%clk 0:01:47]} 17. Bd2 {[%clk 0:01:49]}  Qc8 {[%clk 0:01:46]} 18. Ng1 {[%clk 0:01:28]}  Qd8 {[%clk 0:01:39]} 19. h4 {[%clk 0:01:26]}  Be8 {[%clk 0:01:20]} 20. O-O-O {[%clk 0:01:14]}  b5 {[%clk 0:01:15]} 21. dxc6 {[%clk 0:01:06]}  b4 {[%clk 0:01:12]} 22. c7 {[%clk 0:01:00]}  Qd7 {[%clk 0:00:56]} 23. Nd5 {[%clk 0:01:00]}  b3 {[%clk 0:00:56]} 24. Qb1 {[%clk 0:00:59]}  Bg6 {[%clk 0:00:19]} 25. f3 {[%clk 0:00:51]}  a3 {[%clk 0:00:18]} 26. Nb6 {[%clk 0:00:36]}  Qxc7 {[%clk 0:00:17]} 27. Nxa8 {[%clk 0:00:36]}  Rxa8 {[%clk 0:00:18]} 28. bxa3 {[%clk 0:00:25]}  b2+ {[%clk 0:00:16]} 29. Kc2 {[%clk 0:00:06]}  Nxe4 {[%clk 0:00:15]} 0-1


[Site "https://www.chess.com"]

[Event "Titled Tuesday Blitz June 20 Late 2023"]
[White "Raja Rithvik R"]
[Black "Karamsetty, Jeevan"]
[WhiteFideId "35007394"]
[BlackFideId "2025337"]
[WhiteElo "2395"]
[BlackElo "2131"]
[Result "0-1"]
[Round "5"]
[TimeControl "180+2"]
[Date "2023.06.20"]
[WhiteClock "0:00:09"]
[BlackClock "0:00:10"]
[Board "74"]

1. f4 {[%clk 0:03:00]}  d5 {[%clk 0:02:59]} 2. Nf3 {[%clk 0:03:01]}  c5 {[%clk 0:02:59]} 3. e3 {[%clk 0:03:01]}  Nc6 {[%clk 0:02:59]} 4. Bb5 {[%clk 0:03:00]}  Nf6 {[%clk 0:02:58]} 5. b3 {[%clk 0:02:58]}  g6 {[%clk 0:02:57]} 6. Bb2 {[%clk 0:02:58]}  Bg7 {[%clk 0:02:57]} 7. O-O {[%clk 0:02:57]}  O-O {[%clk 0:02:57]} 8. Bxc6 {[%clk 0:02:56]}  bxc6 {[%clk 0:02:57]} 9. Nc3 {[%clk 0:02:56]}  Rb8 {[%clk 0:02:48]} 10. Na4 {[%clk 0:02:56]}  c4 {[%clk 0:02:45]} 11. bxc4 {[%clk 0:02:48]}  Ba6 {[%clk 0:02:32]} 12. Be5 {[%clk 0:02:24]}  Rc8 {[%clk 0:02:02]} 13. Nc5 {[%clk 0:02:09]}  Bxc4 {[%clk 0:01:55]} 14. d3 {[%clk 0:02:10]}  Qa5 {[%clk 0:01:32]} 15. Nb3 {[%clk 0:02:10]}  Bxb3 {[%clk 0:01:32]} 16. axb3 {[%clk 0:02:11]}  Qb6 {[%clk 0:01:30]} 17. Qd2 {[%clk 0:02:01]}  c5 {[%clk 0:01:23]} 18. Qa5 {[%clk 0:01:57]}  Qe6 {[%clk 0:01:14]} 19. Rfe1 {[%clk 0:01:41]}  Ng4 {[%clk 0:01:05]} 20. Bxg7 {[%clk 0:01:41]}  Kxg7 {[%clk 0:01:06]} 21. Ng5 {[%clk 0:01:20]}  Qf6 {[%clk 0:00:55]} 22. Qxa7 {[%clk 0:00:39]}  Ra8 {[%clk 0:00:41]} 23. Qxa8 {[%clk 0:00:40]}  Rxa8 {[%clk 0:00:42]} 24. Rxa8 {[%clk 0:00:41]}  Nxe3 {[%clk 0:00:37]} 25. Rxe3 {[%clk 0:00:34]}  Qxf4 {[%clk 0:00:28]} 26. Rxe7 {[%clk 0:00:19]}  Qxg5 {[%clk 0:00:28]} 27. Raa7 {[%clk 0:00:19]}  Qc1+ {[%clk 0:00:28]} 28. Kf2 {[%clk 0:00:20]}  Qxc2+ {[%clk 0:00:28]} 29. Ke1 {[%clk 0:00:17]}  Qxd3 {[%clk 0:00:21]} 30. Rxf7+ {[%clk 0:00:17]}  Kh6 {[%clk 0:00:21]} 31. Rxh7+ {[%clk 0:00:17]}  Kg5 {[%clk 0:00:22]} 32. Rad7 {[%clk 0:00:13]}  Qe3+ {[%clk 0:00:19]} 33. Kf1 {[%clk 0:00:13]}  Qxb3 {[%clk 0:00:17]} 34. Rhe7 {[%clk 0:00:14]}  Qd3+ {[%clk 0:00:17]} 35. Kf2 {[%clk 0:00:14]}  Qf5+ {[%clk 0:00:15]} 36. Ke2 {[%clk 0:00:13]}  c4 {[%clk 0:00:14]} 37. Rf7 {[%clk 0:00:08]}  Qe4+ {[%clk 0:00:14]} 38. Kf2 {[%clk 0:00:09]}  c3 {[%clk 0:00:13]} 39. Rde7 {[%clk 0:00:10]}  Qd4+ {[%clk 0:00:11]} 40. Kg3 {[%clk 0:00:10]}  c2 {[%clk 0:00:07]} 41. Rf1 {[%clk 0:00:05]}  Qc3+ {[%clk 0:00:07]} 42. Kf2 {[%clk 0:00:01]}  Qc5+ {[%clk 0:00:07]} 43. Re3 {[%clk 0:00:01]}  c1=Q {[%clk 0:00:07]} 44. Rxc1 {[%clk 0:00:01]}  Qxc1 {[%clk 0:00:07]} 45. Rg3+ {[%clk 0:00:02]}  Kf5 {[%clk 0:00:07]} 46. Rf3+ {[%clk 0:00:03]}  Ke5 {[%clk 0:00:08]} 47. Rg3 {[%clk 0:00:04]}  Qf4+ {[%clk 0:00:07]} 48. Ke2 {[%clk 0:00:04]}  g5 {[%clk 0:00:07]} 49. Re3+ {[%clk 0:00:04]}  Kd6 {[%clk 0:00:07]} 50. Rf3 {[%clk 0:00:05]}  Qxh2 {[%clk 0:00:07]} 51. Kf2 {[%clk 0:00:06]}  d4 {[%clk 0:00:07]} 52. Rf6+ {[%clk 0:00:06]}  Ke5 {[%clk 0:00:07]} 53. Rf8 {[%clk 0:00:07]}  d3 {[%clk 0:00:07]} 54. Re8+ {[%clk 0:00:07]}  Kd4 {[%clk 0:00:08]} 55. Rd8+ {[%clk 0:00:08]}  Kc3 {[%clk 0:00:08]} 56. Rc8+ {[%clk 0:00:09]}  Kd2 {[%clk 0:00:09]} 57. Ra8 {[%clk 0:00:10]}  Qf4+ {[%clk 0:00:09]} 58. Kg1 {[%clk 0:00:10]}  Qe3+ {[%clk 0:00:09]} 59. Kh2 {[%clk 0:00:11]}  Ke2 {[%clk 0:00:09]} 60. Rf8 {[%clk 0:00:09]}  d2 {[%clk 0:00:10]} 0-1


[Site "https://www.chess.com"]

[Event "Titled Tuesday Blitz June 20 Late 2023"]
[White "Lin, Dachey"]
[Black "Bilan, Danila"]
[WhiteFideId "2029650"]
[BlackFideId "24161918"]
[WhiteElo "2313"]
[BlackElo "2146"]
[Result "1-0"]
[Round "5"]
[TimeControl "180+2"]
[Date "2023.06.20"]
[WhiteClock "0:00:13"]
[BlackClock "0:00:00"]
[Board "75"]

1. g4 {[%clk 0:02:37]}  d5 {[%clk 0:02:57]} 2. Bg2 {[%clk 0:02:37]}  c6 {[%clk 0:02:57]} 3. g5 {[%clk 0:02:38]}  e5 {[%clk 0:02:56]} 4. d4 {[%clk 0:02:38]}  e4 {[%clk 0:02:56]} 5. f3 {[%clk 0:02:39]}  exf3 {[%clk 0:02:50]} 6. Nxf3 {[%clk 0:02:40]}  Bd6 {[%clk 0:02:47]} 7. Nc3 {[%clk 0:02:40]}  Ne7 {[%clk 0:02:45]} 8. e4 {[%clk 0:02:41]}  dxe4 {[%clk 0:02:38]} 9. Nxe4 {[%clk 0:02:42]}  Bc7 {[%clk 0:02:37]} 10. O-O {[%clk 0:02:36]}  O-O {[%clk 0:02:34]} 11. c3 {[%clk 0:02:36]}  Ng6 {[%clk 0:02:28]} 12. Bd2 {[%clk 0:02:27]}  Re8 {[%clk 0:02:18]} 13. Ng3 {[%clk 0:02:21]}  Nf4 {[%clk 0:02:10]} 14. Bxf4 {[%clk 0:02:18]}  Bxf4 {[%clk 0:02:11]} 15. Qb3 {[%clk 0:02:14]}  Qc7 {[%clk 0:01:41]} 16. Nh5 {[%clk 0:02:02]}  Be6 {[%clk 0:01:25]} 17. Qc2 {[%clk 0:01:56]}  Bd6 {[%clk 0:01:21]} 18. Rae1 {[%clk 0:01:51]}  Nd7 {[%clk 0:01:20]} 19. h3 {[%clk 0:01:39]}  Nf8 {[%clk 0:01:16]} 20. Ne5 {[%clk 0:01:26]}  Ng6 {[%clk 0:01:14]} 21. Ng4 {[%clk 0:01:16]}  Bxg4 {[%clk 0:01:06]} 22. hxg4 {[%clk 0:01:17]}  Qd7 {[%clk 0:00:59]} 23. Qf5 {[%clk 0:01:03]}  Qxf5 {[%clk 0:00:35]} 24. gxf5 {[%clk 0:01:04]}  Nh4 {[%clk 0:00:36]} 25. f6 {[%clk 0:00:58]}  g6 {[%clk 0:00:24]} 26. Ng7 {[%clk 0:00:58]}  Rxe1 {[%clk 0:00:20]} 27. Rxe1 {[%clk 0:00:59]}  Bf8 {[%clk 0:00:18]} 28. Ne8 {[%clk 0:00:57]}  h6 {[%clk 0:00:17]} 29. gxh6 {[%clk 0:00:55]}  Bxh6 {[%clk 0:00:18]} 30. Bh1 {[%clk 0:00:47]}  Nf5 {[%clk 0:00:17]} 31. Re5 {[%clk 0:00:35]}  Bf4 {[%clk 0:00:16]} 32. Re4 {[%clk 0:00:35]}  Bg5 {[%clk 0:00:09]} 33. Kf2 {[%clk 0:00:26]}  Kf8 {[%clk 0:00:10]} 34. Ng7 {[%clk 0:00:24]}  Nxg7 {[%clk 0:00:06]} 35. fxg7+ {[%clk 0:00:25]}  Kxg7 {[%clk 0:00:06]} 36. Bf3 {[%clk 0:00:24]}  Rh8 {[%clk 0:00:07]} 37. a4 {[%clk 0:00:20]}  Rh2+ {[%clk 0:00:06]} 38. Bg2 {[%clk 0:00:21]}  Rh8 {[%clk 0:00:04]} 39. b4 {[%clk 0:00:21]}  Rd8 {[%clk 0:00:04]} 40. a5 {[%clk 0:00:21]}  a6 {[%clk 0:00:03]} 41. Ke2 {[%clk 0:00:19]}  Bf6 {[%clk 0:00:03]} 42. Kd3 {[%clk 0:00:19]}  Kf8 {[%clk 0:00:04]} 43. Kc4 {[%clk 0:00:20]}  Be7 {[%clk 0:00:04]} 44. Re1 {[%clk 0:00:19]}  f5 {[%clk 0:00:04]} 45. d5 {[%clk 0:00:19]}  cxd5+ {[%clk 0:00:04]} 46. Bxd5 {[%clk 0:00:20]}  Rd7 {[%clk 0:00:03]} 47. Rh1 {[%clk 0:00:20]}  Kg7 {[%clk 0:00:03]} 48. Re1 {[%clk 0:00:18]}  Bf6 {[%clk 0:00:03]} 49. Re3 {[%clk 0:00:18]}  Rc7+ {[%clk 0:00:04]} 50. Kb3 {[%clk 0:00:18]}  f4 {[%clk 0:00:04]} 51. Rd3 {[%clk 0:00:18]}  g5 {[%clk 0:00:04]} 52. Bf3 {[%clk 0:00:18]}  Be5 {[%clk 0:00:04]} 53. c4 {[%clk 0:00:18]}  Kf6 {[%clk 0:00:04]} 54. Bg4 {[%clk 0:00:19]}  Rc6 {[%clk 0:00:03]} 55. Rd7 {[%clk 0:00:17]}  Rc7 {[%clk 0:00:03]} 56. Rd8 {[%clk 0:00:15]}  Rh7 {[%clk 0:00:02]} 57. b5 {[%clk 0:00:12]}  axb5 {[%clk 0:00:02]} 58. cxb5 {[%clk 0:00:13]}  Rh4 {[%clk 0:00:02]} 59. Bc8 {[%clk 0:00:13]}  Rh3+ {[%clk 0:00:00]} 60. Bxh3 {[%clk 0:00:13]} 1-0


[Site "https://www.chess.com"]

[Event "Titled Tuesday Blitz June 20 Late 2023"]
[White "Papayan, Oleg"]
[Black "Tristan, Leonardo"]
[WhiteFideId "4193911"]
[BlackFideId "113816"]
[WhiteElo "2167"]
[BlackElo "2461"]
[Result "0-1"]
[Round "5"]
[TimeControl "180+2"]
[Date "2023.06.20"]
[WhiteClock "0:00:00"]
[BlackClock "0:00:44"]
[Board "76"]

1. e4 {[%clk 0:03:00]}  d5 {[%clk 0:03:00]} 2. exd5 {[%clk 0:03:01]}  Qxd5 {[%clk 0:03:01]} 3. Nc3 {[%clk 0:03:01]}  Qa5 {[%clk 0:03:01]} 4. d4 {[%clk 0:03:00]}  Nf6 {[%clk 0:03:01]} 5. Nf3 {[%clk 0:03:01]}  Bf5 {[%clk 0:03:02]} 6. Ne5 {[%clk 0:02:56]}  c6 {[%clk 0:03:02]} 7. Bc4 {[%clk 0:02:54]}  e6 {[%clk 0:03:02]} 8. Bd2 {[%clk 0:02:46]}  Bb4 {[%clk 0:02:40]} 9. a3 {[%clk 0:02:46]}  Bxc3 {[%clk 0:02:41]} 10. Bxc3 {[%clk 0:02:47]}  Qb6 {[%clk 0:02:41]} 11. O-O {[%clk 0:02:41]}  Nbd7 {[%clk 0:02:41]} 12. Nxd7 {[%clk 0:02:27]}  Nxd7 {[%clk 0:02:42]} 13. Re1 {[%clk 0:02:09]}  O-O {[%clk 0:02:40]} 14. Qd2 {[%clk 0:01:57]}  Qc7 {[%clk 0:02:33]} 15. Re3 {[%clk 0:01:45]}  Rad8 {[%clk 0:02:31]} 16. Rg3 {[%clk 0:01:40]}  Bg6 {[%clk 0:02:29]} 17. Bb4 {[%clk 0:01:24]}  c5 {[%clk 0:02:28]} 18. dxc5 {[%clk 0:01:23]}  Nxc5 {[%clk 0:02:28]} 19. Qe2 {[%clk 0:01:02]}  a5 {[%clk 0:02:17]} 20. Be1 {[%clk 0:00:50]}  Rd4 {[%clk 0:02:00]} 21. Bc3 {[%clk 0:00:31]}  Re4 {[%clk 0:01:59]} 22. Re3 {[%clk 0:00:25]}  Rxe3 {[%clk 0:01:58]} 23. Qxe3 {[%clk 0:00:26]}  Ne4 {[%clk 0:01:34]} 24. Bd3 {[%clk 0:00:07]}  Nxc3 {[%clk 0:01:33]} 25. Bxg6 {[%clk 0:00:08]}  Nd5 {[%clk 0:01:29]} 26. Bxh7+ {[%clk 0:00:04]}  Kxh7 {[%clk 0:01:29]} 27. Qd3+ {[%clk 0:00:04]}  g6 {[%clk 0:01:28]} 28. c4 {[%clk 0:00:05]}  Nf4 {[%clk 0:01:27]} 29. Qe4 {[%clk 0:00:06]}  f5 {[%clk 0:01:22]} 30. Qf3 {[%clk 0:00:02]}  Qxc4 {[%clk 0:01:21]} 31. Re1 {[%clk 0:00:03]}  Nd5 {[%clk 0:01:15]} 32. Qh3+ {[%clk 0:00:02]}  Kg7 {[%clk 0:01:15]} 33. g3 {[%clk 0:00:01]}  Qc6 {[%clk 0:01:09]} 34. Qg2 {[%clk 0:00:01]}  Re8 {[%clk 0:01:08]} 35. Qf1 {[%clk 0:00:02]}  e5 {[%clk 0:01:07]} 36. Qd3 {[%clk 0:00:02]}  Nf6 {[%clk 0:01:04]} 37. h4 {[%clk 0:00:02]}  Ng4 {[%clk 0:00:50]} 38. Qd2 {[%clk 0:00:03]}  e4 {[%clk 0:00:48]} 39. Qxa5 {[%clk 0:00:03]}  Ne5 {[%clk 0:00:44]} 40. Qd2 {[%clk 0:00:00]}  Nf3+ {[%clk 0:00:44]} 0-1


[Site "https://www.chess.com"]

[Event "Titled Tuesday Blitz June 20 Late 2023"]
[White "Przybylski, Wojciech"]
[Black "Veiga, Jose Francisco R P Neves"]
[WhiteFideId "1117599"]
[BlackFideId "1930087"]
[WhiteElo "2228"]
[BlackElo "2319"]
[Result "1-0"]
[Round "5"]
[TimeControl "180+2"]
[Date "2023.06.20"]
[WhiteClock "0:01:40"]
[BlackClock "0:01:16"]
[Board "78"]

1. d4 {[%clk 0:02:59]}  Nf6 {[%clk 0:02:56]} 2. c4 {[%clk 0:02:58]}  g6 {[%clk 0:02:56]} 3. g3 {[%clk 0:02:57]}  Bg7 {[%clk 0:02:57]} 4. Bg2 {[%clk 0:02:57]}  O-O {[%clk 0:02:57]} 5. Nc3 {[%clk 0:02:56]}  c5 {[%clk 0:02:56]} 6. e3 {[%clk 0:02:55]}  d6 {[%clk 0:02:56]} 7. Nge2 {[%clk 0:02:55]}  Nc6 {[%clk 0:02:55]} 8. O-O {[%clk 0:02:54]}  Bf5 {[%clk 0:02:56]} 9. d5 {[%clk 0:02:53]}  Na5 {[%clk 0:02:44]} 10. e4 {[%clk 0:02:53]}  Bg4 {[%clk 0:02:43]} 11. f3 {[%clk 0:02:52]}  Bc8 {[%clk 0:02:42]} 12. b3 {[%clk 0:02:52]}  a6 {[%clk 0:02:40]} 13. f4 {[%clk 0:02:46]}  b5 {[%clk 0:02:38]} 14. e5 {[%clk 0:02:41]}  Nd7 {[%clk 0:02:30]} 15. e6 {[%clk 0:02:41]}  Nb6 {[%clk 0:02:26]} 16. cxb5 {[%clk 0:02:38]}  axb5 {[%clk 0:02:27]} 17. Rb1 {[%clk 0:02:36]}  b4 {[%clk 0:02:25]} 18. Ne4 {[%clk 0:02:27]}  f5 {[%clk 0:02:25]} 19. Ng5 {[%clk 0:02:26]}  Ba6 {[%clk 0:02:16]} 20. Bb2 {[%clk 0:02:23]}  Bxb2 {[%clk 0:02:12]} 21. Rxb2 {[%clk 0:02:23]}  Rf6 {[%clk 0:02:04]} 22. h4 {[%clk 0:02:18]}  Qf8 {[%clk 0:01:58]} 23. h5 {[%clk 0:02:14]}  c4 {[%clk 0:01:54]} 24. Nd4 {[%clk 0:02:01]}  c3 {[%clk 0:01:51]} 25. Rc2 {[%clk 0:02:00]}  Bxf1 {[%clk 0:01:51]} 26. Qxf1 {[%clk 0:02:00]}  Qe8 {[%clk 0:01:38]} 27. hxg6 {[%clk 0:01:50]}  hxg6 {[%clk 0:01:38]} 28. Bf3 {[%clk 0:01:49]}  Kg7 {[%clk 0:01:38]} 29. Rh2 {[%clk 0:01:47]}  Rf8 {[%clk 0:01:24]} 30. Rh7+ {[%clk 0:01:46]}  Kf6 {[%clk 0:01:24]} 31. Qh3 {[%clk 0:01:39]}  Rh8 {[%clk 0:01:22]} 32. Ne4+ {[%clk 0:01:39]}  fxe4 {[%clk 0:01:18]} 33. Qh4+ {[%clk 0:01:39]}  g5 {[%clk 0:01:16]} 34. Qxg5# {[%clk 0:01:40]} 1-0


[Site "https://www.chess.com"]